fUST/lending_fUST_20250624
["ID","MTS","AMOUNT","RATE_DAILY","PERIOD"]
[367376729,1750774240747,-581.05847454,0.00019178,2]
[367376730,1750774240756,-460.0,0.00019178,2]
[367376732,1750774240766,-460.0,0.00019178,2]
[367376733,1750774240775,-1004.95,0.00019178,2]
[367376734,1750774240785,-460.0,0.00019178,2]
[367376735,1750774240794,-460.0,0.00019178,2]
[367376736,1750774240804,-460.0,0.00019178,2]
[367376737,1750774240813,-460.0,0.00019178,2]
[367376738,1750774240822,-460.0,0.00019178,2]
[367376739,1750774240831,-460.0,0.00019178,2]
[367376740,1750774240841,-460.0,0.00019178,2]
[367376741,1750774240851,-1237.79,0.00019178,2]
[367376742,1750774240861,-460.0,0.00019178,2]
[367376743,1750774240870,-460.0,0.00019178,2]
[367376744,1750774240881,-460.0,0.00019178,2]
[367376745,1750774240891,-1443.65,0.00019178,2]
[367376746,1750774240900,-460.0,0.00019178,2]
[367376747,1750774240909,-460.0,0.00019178,2]
[367376748,1750774240918,-460.0,0.00019178,2]
[367376749,1750774240928,-460.0,0.00019178,2]
[367376750,1750774240937,-3645.75,0.00019178,2]
[367376751,1750774240946,-440.0,0.00019178,2]
[367376752,1750774240955,-460.0,0.00019178,2]
[367376753,1750774240965,-460.0,0.00019178,2]
[367376754,1750774240975,-460.0,0.00019178,2]
[367376755,1750774240984,-460.0,0.00019178,2]
[367376756,1750774240993,-460.0,0.00019178,2]
[367376757,1750774241002,-460.0,0.00019178,2]
[367376758,1750774241012,-1240.3,0.00019178,2]
[367376759,1750774241021,-460.0,0.00019178,2]
[367376760,1750774241030,-460.0,0.00019178,2]
[367376761,1750774241039,-460.0,0.00019178,2]
[367376762,1750774241049,-460.0,0.00019178,2]
[367376763,1750774241058,-460.0,0.00019178,2]
[367376764,1750774241067,-460.0,0.00019178,2]
[367376765,1750774241077,-460.0,0.00019178,2]
[367376766,1750774241086,-1257.73,0.00019178,2]
[367376767,1750774241095,-758.12,0.00019178,2]
[367376768,1750774241105,-895.82,0.00019178,2]
[367376769,1750774241115,-460.0,0.00019178,2]
[367376770,1750774241125,-460.0,0.00019178,2]
[367376771,1750774241134,-460.0,0.00019178,2]
[367376772,1750774241144,-460.0,0.00019178,2]
[367376773,1750774241153,-500.0,0.00019178,2]
[367376774,1750774241162,-593.38698982,0.00019178,2]
[367376775,1750774241171,-460.0,0.00019178,2]
[367376776,1750774241181,-676.87,0.00019178,2]
[367376777,1750774241190,-460.0,0.00019178,2]
[367376778,1750774241199,-460.0,0.00019178,2]
[367376779,1750774241208,-460.0,0.00019178,2]
[367376780,1750774241217,-460.0,0.00019178,2]
[367376781,1750774241226,-1204.57,0.00019178,2]
[367376782,1750774241235,-460.0,0.00019178,2]
[367376783,1750774241245,-345.59173959,0.00019178,2]
[367376784,1750774241254,-460.0,0.00019178,2]
[367376785,1750774241267,-460.51869326,0.00019178,2]
[367376786,1750774241277,-460.0,0.00019178,2]
[367376787,1750774241286,-460.0,0.00019178,2]
[367376788,1750774241296,-460.0,0.00019178,2]
[367376789,1750774241306,-460.0,0.00019178,2]
[367376790,1750774241315,-460.0,0.00019178,2]
[367376791,1750774241325,-460.0,0.00019178,2]
[367376792,1750774241334,-971.84,0.00019178,2]
[367376793,1750774241345,-460.0,0.00019178,2]
[367376794,1750774241355,-1520.1,0.00019178,2]
[367376795,1750774241365,-460.0,0.00019178,2]
[367376796,1750774241374,-296.31278745,0.00019178,2]
[367376797,1750774241384,-460.0,0.00019178,2]
[367376798,1750774241393,-460.0,0.00019178,2]
[367376799,1750774241403,-3590.14,0.00019178,2]
[367376800,1750774241412,-460.0,0.00019178,2]
[367376801,1750774241421,-3339.47,0.00019178,2]
[367376802,1750774241432,-460.0,0.00019178,2]
[367376803,1750774241442,-460.0,0.00019178,2]
[367376804,1750774241451,-4221.1,0.00019178,2]
[367376805,1750774241461,-489.34,0.00019178,2]
[367376806,1750774241471,-1211.74,0.00019178,2]
[367376807,1750774241481,-1899.6,0.00019178,2]
[367376808,1750774241490,-460.0,0.00019178,2]
[367376809,1750774241500,-460.0,0.00019178,2]
[367376810,1750774241509,-460.0,0.00019178,2]
[367376811,1750774241518,-460.0,0.00019178,2]
[367376812,1750774241528,-1527.72,0.00019178,2]
[367376813,1750774241537,-460.0,0.00019178,2]
[367376814,1750774241546,-460.0,0.00019178,2]
[367376815,1750774241556,-460.0,0.00019178,2]
[367376816,1750774241565,-460.0,0.00019178,2]
[367376817,1750774241575,-460.0,0.00019178,2]
[367376818,1750774241584,-460.0,0.00019178,2]
[367376819,1750774241593,-3521.84,0.00019178,2]
[367376820,1750774241603,-460.0,0.00019178,2]
[367376821,1750774241612,-460.0,0.00019178,2]
[367376822,1750774241621,-460.0,0.00019178,2]
[367376823,1750774241631,-460.0,0.00019178,2]
[367376824,1750774241641,-460.0,0.00019178,2]
[367376825,1750774241650,-460.0,0.00019178,2]
[367376826,1750774241660,-460.0,0.00019178,2]
[367376827,1750774241669,-460.0,0.00019178,2]
[367376828,1750774241679,-460.0,0.00019178,2]
[367376829,1750774241689,-460.0,0.00019178,2]
[367376830,1750774241698,-1564.63,0.00019178,2]
[367376831,1750774241708,-460.0,0.00019178,2]
[367376832,1750774241717,-445.2204973,0.00019178,2]
[367376833,1750774241727,-460.0,0.00019178,2]
[367376834,1750774241736,-473.53420988,0.00019178,2]
[367376835,1750774241746,-460.0,0.00019178,2]
[367376836,1750774241755,-460.0,0.00019178,2]
[367376837,1750774241764,-460.0,0.00019178,2]
[367376838,1750774241773,-460.0,0.00019178,2]
[367376839,1750774241782,-460.0,0.00019178,2]
[367376840,1750774241792,-2676.38,0.00019178,2]
[367376841,1750774241802,-460.0,0.00019178,2]
[367376842,1750774241811,-1122.37,0.00019178,2]
[367376843,1750774241820,-460.0,0.00019178,2]
[367376844,1750774241829,-460.0,0.00019178,2]
[367376845,1750774241839,-460.0,0.00019178,2]
[367376846,1750774241848,-460.0,0.00019178,2]
[367376847,1750774241858,-460.0,0.00019178,2]
[367376848,1750774241868,-460.0,0.00019178,2]
[367376849,1750774241877,-460.0,0.00019178,2]
[367376850,1750774241887,-460.0,0.00019178,2]
[367376851,1750774241896,-878.98,0.00019178,2]
[367376852,1750774241905,-460.0,0.00019178,2]
[367376853,1750774241914,-460.0,0.00019178,2]
[367376854,1750774241923,-460.0,0.00019178,2]
[367376855,1750774241933,-460.0,0.00019178,2]
[367376856,1750774241942,-460.0,0.00019178,2]
[367376857,1750774241951,-460.0,0.00019178,2]
[367376858,1750774241961,-460.0,0.00019178,2]
[367376859,1750774241970,-666.8,0.00019178,2]
[367376860,1750774241979,-460.0,0.00019178,2]
[367376861,1750774241988,-460.0,0.00019178,2]
[367376862,1750774241997,-460.0,0.00019178,2]
[367376863,1750774242007,-460.0,0.00019178,2]
[367376864,1750774242016,-460.0,0.00019178,2]
[367376865,1750774242025,-500.0,0.00019178,2]
[367376866,1750774242034,-586.04562661,0.00019178,2]
[367376867,1750774242044,-667.52,0.00019178,2]
[367376868,1750774242053,-460.0,0.00019178,2]
[367376869,1750774242063,-460.0,0.00019178,2]
[367376870,1750774242072,-460.0,0.00019178,2]
[367376871,1750774242081,-2412.55,0.00019178,2]
[367376872,1750774242090,-460.0,0.00019178,2]
[367376873,1750774242100,-460.0,0.00019178,2]
[367376874,1750774242109,-460.0,0.00019178,2]
[367376875,1750774242118,-460.0,0.00019178,2]
[367376876,1750774242128,-405.03655445,0.00019178,2]
[367376877,1750774242137,-460.0,0.00019178,2]
[367376878,1750774242146,-460.0,0.00019178,2]
[367376879,1750774242155,-460.0,0.00019178,2]
[367376880,1750774242165,-460.0,0.00019178,2]
[367376881,1750774242174,-460.0,0.00019178,2]
[367376882,1750774242183,-460.0,0.00019178,2]
[367376883,1750774242192,-460.0,0.00019178,2]
[367376884,1750774242201,-460.0,0.00019178,2]
[367376885,1750774242211,-460.0,0.00019178,2]
[367376886,1750774242220,-460.0,0.00019178,2]
[367376887,1750774242230,-460.0,0.00019178,2]
[367376888,1750774242239,-460.0,0.00019178,2]
[367376889,1750774242248,-460.0,0.00019178,2]
[367376890,1750774242256,-757.14,0.00019178,2]
[367376891,1750774242269,-460.0,0.00019178,2]
[367376892,1750774242278,-460.0,0.00019178,2]
[367376893,1750774242287,-460.0,0.00019178,2]
[367376894,1750774242297,-498.87917034,0.00019178,2]
[367376895,1750774242306,-460.0,0.00019178,2]
[367376897,1750774242315,-460.0,0.00019178,2]
[367376898,1750774242324,-460.0,0.00019178,2]
[367376899,1750774242333,-460.0,0.00019178,2]
[367376903,1750774242481,-460.0,0.00019178,2]
[367376904,1750774242509,-460.0,0.00019178,2]
[367376905,1750774242518,-460.0,0.00019178,2]
[367376906,1750774242527,-460.0,0.00019178,2]
[367376907,1750774242537,-460.0,0.00019178,2]
[367376908,1750774242546,-460.0,0.00019178,2]
[367376909,1750774242555,-3142.01,0.00019178,2]
[367376910,1750774242564,-415.57265168,0.00019178,2]
[367376911,1750774242574,-460.0,0.00019178,2]
[367376912,1750774242583,-443.42320512,0.00019178,2]
[367376913,1750774242593,-460.0,0.00019178,2]
[367376914,1750774242602,-3233.74,0.00019178,2]
[367376915,1750774242612,-460.0,0.00019178,2]
[367376916,1750774242621,-460.0,0.00019178,2]
[367376917,1750774242637,-460.0,0.00019178,2]
[367376918,1750774242647,-460.0,0.00019178,2]
[367376919,1750774242656,-460.0,0.00019178,2]
[367376920,1750774242665,-460.0,0.00019178,2]
[367376921,1750774242675,-589.92,0.00019178,2]
[367376922,1750774242684,-460.0,0.00019178,2]
[367376923,1750774242694,-460.0,0.00019178,2]
[367376924,1750774242703,-460.0,0.00019178,2]
[367376925,1750774242714,-490.48,0.00019178,2]
[367376926,1750774242723,-460.0,0.00019178,2]
[367376928,1750774242732,-4582.47,0.00019178,2]
[367376930,1750774242742,-460.0,0.00019178,2]
[367376931,1750774242751,-460.0,0.00019178,2]
[367376933,1750774242760,-1637.3,0.00019178,2]
[367376934,1750774242769,-460.0,0.00019178,2]
[367376936,1750774242778,-500.0,0.00019178,2]
[367376938,1750774242787,-460.0,0.00019178,2]
[367376939,1750774242796,-460.0,0.00019178,2]
[367376941,1750774242806,-460.0,0.00019178,2]
[367376943,1750774242815,-4475.1,0.00019178,2]
[367376944,1750774242824,-460.0,0.00019178,2]
[367376946,1750774242833,-460.0,0.00019178,2]
[367376948,1750774242842,-460.0,0.00019178,2]
[367376949,1750774242851,-460.0,0.00019178,2]
[367376950,1750774242860,-460.0,0.00019178,2]
[367376951,1750774242869,-460.0,0.00019178,2]
[367376952,1750774242882,-460.0,0.00019178,2]
[367376953,1750774242890,-460.0,0.00019178,2]
[367376955,1750774242900,-460.0,0.00019178,2]
[367376956,1750774242909,-360.0,0.00019178,2]
[367376958,1750774242918,-568.1,0.00019178,2]
[367376959,1750774242927,-460.0,0.00019178,2]
[367376961,1750774242936,-460.0,0.00019178,2]
[367376962,1750774242946,-460.0,0.00019178,2]
[367376963,1750774242955,-499.94764706,0.00019178,2]
[367376964,1750774242964,-953.99,0.00019178,2]
[367376966,1750774242973,-1268.76,0.00019178,2]
[367376968,1750774242982,-1066.59,0.00019178,2]
[367376969,1750774242991,-460.0,0.00019178,2]
[367376970,1750774243000,-401.46287726,0.00019178,2]
[367376971,1750774243009,-460.0,0.00019178,2]
[367376972,1750774243018,-460.40208519,0.00019178,2]
[367376973,1750774243027,-460.0,0.00019178,2]
[367376974,1750774243037,-460.0,0.00019178,2]
[367376975,1750774243046,-460.0,0.00019178,2]
[367376976,1750774243055,-460.0,0.00019178,2]
[367376977,1750774243064,-460.0,0.00019178,2]
[367376978,1750774243073,-460.0,0.00019178,2]
[367376979,1750774243082,-460.0,0.00019178,2]
[367376980,1750774243091,-460.0,0.00019178,2]
[367376981,1750774243100,-1291.29,0.00019178,2]
[367376982,1750774243110,-993.32,0.00019178,2]
[367376983,1750774243119,-460.0,0.00019178,2]
[367376984,1750774243132,-460.0,0.00019178,2]
[367376985,1750774243141,-816.09,0.00019178,2]
[367376986,1750774243150,-453.30596249,0.00019178,2]
[367376987,1750774243160,-2309.93,0.00019178,2]
[367376988,1750774243169,-460.0,0.00019178,2]
[367376989,1750774243179,-460.0,0.00019178,2]
[367376990,1750774243188,-460.0,0.00019178,2]
[367376991,1750774243197,-460.0,0.00019178,2]
[367376992,1750774243206,-460.0,0.00019178,2]
[367376994,1750774243215,-460.0,0.00019178,2]
[367376995,1750774243225,-2618.18,0.00019178,2]
[367376996,1750774243234,-460.0,0.00019178,2]
[367376997,1750774243243,-460.0,0.00019178,2]
[367376998,1750774243252,-460.0,0.00019178,2]
[367376999,1750774243263,-8696.44,0.00019178,2]
[367377000,1750774243274,-2083.09,0.00019178,2]
[367377001,1750774243283,-460.0,0.00019178,2]
[367377002,1750774243292,-460.0,0.00019178,2]
[367377004,1750774243303,-460.0,0.00019178,2]
[367377006,1750774243312,-1572.88,0.00019178,2]
[367377008,1750774243322,-151.0,0.000192,2]
[367377009,1750774243331,-1750.456,0.00019218,2]
[367377010,1750774243341,-1815.222872,0.00019273,2]
[367377011,1750774243351,-151.0,0.000193,2]
[367377012,1750774243360,-383.0,0.00019327,3]
[367377013,1750774243369,-286.0,0.00019327,3]
[367377014,1750774243382,-1882.38611826,0.00019328,2]
[367377015,1750774243391,-1952.03440464,0.00019383,2]
[367377016,1750774243400,-177.3826656,0.000194,2]
[367377017,1750774243410,-151.0,0.000194,2]
[367377018,1750774243419,-151.0,0.000194,2]
[367377019,1750774243429,-2024.25967761,0.00019438,2]
[367377020,1750774243439,-500.0,0.00019449,2]
[367377021,1750774243447,-460.0,0.00019452,2]
[367377022,1750774243457,-460.0,0.00019452,2]
[367377023,1750774243467,-460.0,0.00019452,2]
[367377024,1750774243476,-419.94351983,0.00019452,2]
[367377025,1750774243486,-460.0,0.00019452,2]
[367377026,1750774243496,-460.0,0.00019452,2]
[367377027,1750774243506,-460.0,0.00019452,2]
[367377028,1750774243515,-460.0,0.00019452,2]
[367377029,1750774243525,-460.0,0.00019452,2]
[367377030,1750774243535,-469.73683412,0.00019452,2]
[367377031,1750774243545,-460.0,0.00019452,2]
[367377032,1750774243554,-460.0,0.00019452,2]
[367377033,1750774243564,-460.0,0.00019452,2]
[367377034,1750774243573,-460.0,0.00019452,2]
[367377035,1750774243582,-167.42,0.00019452,2]
[367377036,1750774243592,-460.0,0.00019452,2]
[367377037,1750774243602,-592.49,0.00019452,2]
[367377038,1750774243611,-460.0,0.00019452,2]
[367377039,1750774243620,-460.0,0.00019452,2]
[367377040,1750774243632,-348.46845455,0.00019452,2]
[367377041,1750774243642,-460.0,0.00019452,2]
[367377042,1750774243651,-537.51,0.00019452,2]
[367377043,1750774243660,-350.72,0.00019452,2]
[367377044,1750774243670,-460.0,0.00019452,2]
[367377045,1750774243679,-460.0,0.00019452,2]
[367377046,1750774243689,-693.02,0.00019452,2]
[367377047,1750774243698,-212.09,0.00019452,2]
[367377048,1750774243708,-560.72,0.00019452,2]
[367377049,1750774243718,-515.76,0.00019452,2]
[367377050,1750774243727,-460.0,0.00019452,2]
[367377051,1750774243736,-267.80559997,0.00019452,2]
[367377052,1750774243745,-460.0,0.00019452,2]
[367377053,1750774243754,-1183.79,0.00019452,2]
[367377054,1750774243764,-460.0,0.00019452,2]
[367377055,1750774243773,-597.74081202,0.00019452,2]
[367377056,1750774243782,-460.0,0.00019452,2]
[367377057,1750774243792,-460.0,0.00019452,2]
[367377058,1750774243801,-478.68,0.00019452,2]
[367377059,1750774243810,-460.0,0.00019452,2]
[367377060,1750774243819,-460.0,0.00019452,2]
[367377061,1750774243828,-460.0,0.00019452,2]
[367377062,1750774243837,-460.0,0.00019452,2]
[367377063,1750774243846,-592.57,0.00019452,2]
[367377064,1750774243855,-334.58,0.00019452,2]
[367377065,1750774243864,-583.69,0.00019452,2]
[367377066,1750774243874,-460.0,0.00019452,2]
[367377067,1750774243884,-460.0,0.00019452,2]
[367377068,1750774243894,-460.0,0.00019452,2]
[367377069,1750774243903,-460.0,0.00019452,2]
[367377070,1750774243915,-256.46648522,0.00019452,2]
[367377071,1750774243924,-460.0,0.00019452,2]
[367377072,1750774243933,-460.0,0.00019452,2]
[367377073,1750774243943,-460.0,0.00019452,2]
[367377074,1750774243953,-252.83999872,0.00019452,2]
[367377075,1750774243964,-460.0,0.00019452,2]
[367377076,1750774243973,-460.0,0.00019452,2]
[367377077,1750774243982,-460.0,0.00019452,2]
[367377078,1750774243991,-460.0,0.00019452,2]
[367377079,1750774244000,-460.0,0.00019452,2]
[367377080,1750774244009,-460.0,0.00019452,2]
[367377081,1750774244019,-460.0,0.00019452,2]
[367377082,1750774244028,-460.0,0.00019452,2]
[367377083,1750774244037,-460.0,0.00019452,2]
[367377084,1750774244047,-460.0,0.00019452,2]
[367377085,1750774244056,-460.0,0.00019452,2]
[367377086,1750774244065,-460.0,0.00019452,2]
[367377087,1750774244074,-460.0,0.00019452,2]
[367377088,1750774244083,-460.0,0.00019452,2]
[367377089,1750774244092,-500.0,0.00019452,2]
[367377090,1750774244101,-460.0,0.00019452,2]
[367377091,1750774244110,-1122.0,0.00019452,2]
[367377092,1750774244119,-460.0,0.00019452,2]
[367377093,1750774244131,-460.0,0.00019452,2]
[367377094,1750774244140,-460.0,0.00019452,2]
[367377095,1750774244150,-460.0,0.00019452,2]
[367377096,1750774244159,-460.0,0.00019452,2]
[367377097,1750774244168,-460.0,0.00019452,2]
[367377098,1750774244178,-460.0,0.00019452,2]
[367377099,1750774244187,-1004.95,0.00019452,2]
[367377100,1750774244196,-460.0,0.00019452,2]
[367377101,1750774244205,-460.0,0.00019452,2]
[367377102,1750774244214,-460.0,0.00019452,2]
[367377103,1750774244223,-460.0,0.00019452,2]
[367377104,1750774244233,-460.0,0.00019452,2]
[367377105,1750774244242,-1237.79,0.00019452,2]
[367377106,1750774244251,-460.0,0.00019452,2]
[367377107,1750774244261,-460.0,0.00019452,2]
[367377108,1750774244272,-460.0,0.00019452,2]
[367377109,1750774244281,-1443.65,0.00019452,2]
[367377110,1750774244290,-460.0,0.00019452,2]
[367377111,1750774244299,-460.0,0.00019452,2]
[367377112,1750774244309,-460.0,0.00019452,2]
[367377113,1750774244319,-460.0,0.00019452,2]
[367377114,1750774244328,-3645.75,0.00019452,2]
[367377115,1750774244337,-460.0,0.00019452,2]
[367377116,1750774244347,-372.02718125,0.00019452,2]
[367377117,1750774244357,-1240.3,0.00019452,2]
[367377118,1750774244366,-460.0,0.00019452,2]
[367377119,1750774244375,-460.0,0.00019452,2]
[367377120,1750774244385,-460.0,0.00019452,2]
[367377121,1750774244395,-460.0,0.00019452,2]
[367377122,1750774244404,-1257.73,0.00019452,2]
[367377123,1750774244414,-758.12,0.00019452,2]
[367377124,1750774244423,-895.82,0.00019452,2]
[367377125,1750774244432,-460.0,0.00019452,2]
[367377126,1750774244441,-460.0,0.00019452,2]
[367377127,1750774244451,-460.0,0.00019452,2]
[367377128,1750774244460,-627.64014139,0.00019452,2]
[367377129,1750774244469,-460.0,0.00019452,2]
[367377130,1750774244479,-676.87,0.00019452,2]
[367377131,1750774244487,-430.0,0.00019452,2]
[367377132,1750774244497,-460.0,0.00019452,2]
[367377133,1750774244506,-1204.57,0.00019452,2]
[367377134,1750774244515,-460.0,0.00019452,2]
[367377135,1750774244525,-460.0,0.00019452,2]
[367377136,1750774244534,-414.36450241,0.00019452,2]
[367377137,1750774244543,-460.0,0.00019452,2]
[367377138,1750774244552,-460.0,0.00019452,2]
[367377139,1750774244562,-971.84,0.00019452,2]
[367377140,1750774244571,-1520.1,0.00019452,2]
[367377141,1750774244580,-460.0,0.00019452,2]
[367377142,1750774244594,-460.0,0.00019452,2]
[367377143,1750774244604,-460.0,0.00019452,2]
[367377144,1750774244613,-3590.14,0.00019452,2]
[367377145,1750774244623,-460.0,0.00019452,2]
[367377146,1750774244633,-3339.47,0.00019452,2]
[367377147,1750774244642,-460.0,0.00019452,2]
[367377148,1750774244652,-4221.1,0.00019452,2]
[367377149,1750774244661,-489.34,0.00019452,2]
[367377150,1750774244670,-1211.74,0.00019452,2]
[367377151,1750774244679,-1899.6,0.00019452,2]
[367377152,1750774244688,-321.01943641,0.00019452,2]
[367377153,1750774244698,-460.0,0.00019452,2]
[367377154,1750774244707,-460.0,0.00019452,2]
[367377155,1750774244717,-1527.72,0.00019452,2]
[367377156,1750774244726,-460.0,0.00019452,2]
[367377157,1750774244736,-460.0,0.00019452,2]
[367377158,1750774244745,-460.0,0.00019452,2]
[367377159,1750774244754,-460.0,0.00019452,2]
[367377160,1750774244764,-3521.84,0.00019452,2]
[367377161,1750774244773,-460.0,0.00019452,2]
[367377162,1750774244782,-460.0,0.00019452,2]
[367377163,1750774244793,-460.0,0.00019452,2]
[367377164,1750774244803,-460.0,0.00019452,2]
[367377165,1750774244812,-460.0,0.00019452,2]
[367377166,1750774244822,-460.0,0.00019452,2]
[367377167,1750774244831,-1564.63,0.00019452,2]
[367377168,1750774244840,-262.14125915,0.00019452,2]
[367377169,1750774244850,-460.0,0.00019452,2]
[367377170,1750774244859,-436.24720046,0.00019452,2]
[367377171,1750774244868,-460.0,0.00019452,2]
[367377172,1750774244878,-2676.38,0.00019452,2]
[367377173,1750774244887,-1122.37,0.00019452,2]
[367377174,1750774244896,-460.0,0.00019452,2]
[367377175,1750774244906,-460.0,0.00019452,2]
[367377176,1750774244916,-460.0,0.00019452,2]
[367377177,1750774244925,-460.0,0.00019452,2]
[367377178,1750774244934,-254.07312552,0.00019452,2]
[367377179,1750774244943,-460.0,0.00019452,2]
[367377180,1750774244952,-878.98,0.00019452,2]
[367377181,1750774244962,-460.0,0.00019452,2]
[367377182,1750774244971,-460.0,0.00019452,2]
[367377183,1750774244980,-460.0,0.00019452,2]
[367377184,1750774244989,-460.0,0.00019452,2]
[367377185,1750774244998,-666.8,0.00019452,2]
[367377186,1750774245007,-460.0,0.00019452,2]
[367377187,1750774245016,-460.0,0.00019452,2]
[367377188,1750774245025,-460.0,0.00019452,2]
[367377189,1750774245034,-460.0,0.00019452,2]
[367377190,1750774245043,-460.0,0.00019452,2]
[367377191,1750774245052,-667.52,0.00019452,2]
[367377192,1750774245061,-460.0,0.00019452,2]
[367377193,1750774245070,-2412.55,0.00019452,2]
[367377194,1750774245080,-460.0,0.00019452,2]
[367377195,1750774245089,-460.0,0.00019452,2]
[367377196,1750774245098,-460.0,0.00019452,2]
[367377197,1750774245107,-460.0,0.00019452,2]
[367377198,1750774245116,-460.0,0.00019452,2]
[367377199,1750774245125,-460.0,0.00019452,2]
[367377200,1750774245135,-460.0,0.00019452,2]
[367377201,1750774245144,-460.0,0.00019452,2]
[367377202,1750774245153,-460.0,0.00019452,2]
[367377203,1750774245162,-460.0,0.00019452,2]
[367377204,1750774245172,-460.0,0.00019452,2]
[367377205,1750774245182,-422.61235914,0.00019452,2]
[367377206,1750774245191,-460.0,0.00019452,2]
[367377207,1750774245201,-597.70771196,0.00019452,2]
[367377208,1750774245210,-757.14,0.00019452,2]
[367377209,1750774245219,-460.0,0.00019452,2]
[367377210,1750774245228,-460.0,0.00019452,2]
[367377211,1750774245238,-460.0,0.00019452,2]
[367377212,1750774245248,-460.0,0.00019452,2]
[367377213,1750774245257,-460.0,0.00019452,2]
[367377214,1750774245270,-460.0,0.00019452,2]
[367377215,1750774245279,-460.0,0.00019452,2]
[367377216,1750774245289,-460.0,0.00019452,2]
[367377217,1750774245298,-460.0,0.00019452,2]
[367377218,1750774245309,-460.0,0.00019452,2]
[367377220,1750774245318,-3142.01,0.00019452,2]
[367377221,1750774245328,-460.0,0.00019452,2]
[367377222,1750774245337,-460.0,0.00019452,2]
[367377223,1750774245347,-3233.74,0.00019452,2]
[367377224,1750774245356,-460.0,0.00019452,2]
[367377225,1750774245366,-460.0,0.00019452,2]
[367377226,1750774245375,-460.0,0.00019452,2]
[367377227,1750774245385,-589.92,0.00019452,2]
[367377228,1750774245394,-460.0,0.00019452,2]
[367377229,1750774245404,-460.0,0.00019452,2]
[367377230,1750774245414,-490.48,0.00019452,2]
[367377231,1750774245423,-460.0,0.00019452,2]
[367377237,1750774245564,-4582.47,0.00019452,2]
[367377240,1750774245574,-460.0,0.00019452,2]
[367377242,1750774245584,-460.0,0.00019452,2]
[367377244,1750774245594,-1637.3,0.00019452,2]
[367377246,1750774245603,-460.0,0.00019452,2]
[367377249,1750774245612,-334.28139495,0.00019452,2]
[367377251,1750774245622,-460.0,0.00019452,2]
[367377254,1750774245632,-4475.1,0.00019452,2]
[367377256,1750774245641,-460.0,0.00019452,2]
[367377258,1750774245651,-460.0,0.00019452,2]
[367377260,1750774245661,-460.0,0.00019452,2]
[367377261,1750774245671,-460.0,0.00019452,2]
[367377263,1750774245680,-460.0,0.00019452,2]
[367377265,1750774245689,-460.0,0.00019452,2]
[367377266,1750774245698,-460.0,0.00019452,2]
[367377267,1750774245707,-460.0,0.00019452,2]
[367377268,1750774245717,-460.0,0.00019452,2]
[367377269,1750774245726,-460.0,0.00019452,2]
[367377271,1750774245736,-568.1,0.00019452,2]
[367377273,1750774245746,-460.0,0.00019452,2]
[367377274,1750774245755,-953.99,0.00019452,2]